[Event "Titled Tuesday Blitz May 2 Early 2023"]
[White "Rustemov, Alexander"]
[Black "Koellner, Ruben Gideon"]
[WhiteFideId "4119002"]
[BlackFideId "12993093"]
[WhiteElo "2525"]
[BlackElo "2314"]
[Result "1-0"]
[Round "04"]
[TimeControl "180+2"]
[Date "2023.05.02"]
[WhiteClock "0:00:15"]
[BlackClock "0:00:04"]

1. d4 {[%clk 0:03:00]}  d6 {[%clk 0:03:00]} 2. Nf3 {[%clk 0:02:59]}  Nf6 {[%clk 0:02:59]} 3. c4 {[%clk 0:02:59]}  Nbd7 {[%clk 0:03:00]} 4. Nc3 {[%clk 0:02:58]}  e5 {[%clk 0:03:00]} 5. g3 {[%clk 0:02:57]}  Be7 {[%clk 0:03:00]} 6. Bg2 {[%clk 0:02:57]}  c6 {[%clk 0:03:01]} 7. Qc2 {[%clk 0:02:56]}  O-O {[%clk 0:03:00]} 8. O-O {[%clk 0:02:56]}  a6 {[%clk 0:03:00]} 9. Rd1 {[%clk 0:02:53]}  Qc7 {[%clk 0:03:00]} 10. h3 {[%clk 0:02:47]}  Rd8 {[%clk 0:02:59]} 11. Be3 {[%clk 0:02:44]}  h6 {[%clk 0:02:49]} 12. Rac1 {[%clk 0:02:43]}  Re8 {[%clk 0:02:47]} 13. Nd2 {[%clk 0:02:25]}  Bf8 {[%clk 0:02:46]} 14. d5 {[%clk 0:02:23]}  c5 {[%clk 0:02:40]} 15. g4 {[%clk 0:02:19]}  Nh7 {[%clk 0:02:39]} 16. Nde4 {[%clk 0:02:18]}  Ndf6 {[%clk 0:02:27]} 17. Ng3 {[%clk 0:02:17]}  g6 {[%clk 0:02:24]} 18. Qd2 {[%clk 0:02:13]}  h5 {[%clk 0:02:10]} 19. gxh5 {[%clk 0:02:12]}  Nxh5 {[%clk 0:02:11]} 20. Nxh5 {[%clk 0:02:11]}  gxh5 {[%clk 0:02:12]} 21. Kh2 {[%clk 0:02:09]}  f5 {[%clk 0:02:10]} 22. Bh6 {[%clk 0:02:06]}  Qf7 {[%clk 0:01:50]} 23. Rg1 {[%clk 0:02:04]}  Kh8 {[%clk 0:01:50]} 24. Bxf8 {[%clk 0:02:03]}  Rxf8 {[%clk 0:01:48]} 25. f4 {[%clk 0:02:00]}  e4 {[%clk 0:01:46]} 26. Nd1 {[%clk 0:01:52]}  Bd7 {[%clk 0:01:44]} 27. Ne3 {[%clk 0:01:49]}  Rg8 {[%clk 0:01:38]} 28. Bh1 {[%clk 0:01:48]}  Qf6 {[%clk 0:01:30]} 29. Qc3 {[%clk 0:01:48]}  Qxc3 {[%clk 0:01:28]} 30. Rxc3 {[%clk 0:01:45]}  b5 {[%clk 0:01:25]} 31. Rxg8+ {[%clk 0:01:43]}  Kxg8 {[%clk 0:01:24]} 32. Ra3 {[%clk 0:01:43]}  b4 {[%clk 0:01:22]} 33. Ra5 {[%clk 0:01:42]}  Kf7 {[%clk 0:01:09]} 34. b3 {[%clk 0:01:33]}  Nf8 {[%clk 0:00:53]} 35. Ng2 {[%clk 0:01:29]}  Bc8 {[%clk 0:00:47]} 36. e3 {[%clk 0:01:26]}  Ng6 {[%clk 0:00:40]} 37. Kg3 {[%clk 0:01:25]}  Ke8 {[%clk 0:00:29]} 38. Nh4 {[%clk 0:01:25]}  Ne7 {[%clk 0:00:29]} 39. Kf2 {[%clk 0:01:23]}  Kd8 {[%clk 0:00:28]} 40. a3 {[%clk 0:01:19]}  Rb8 {[%clk 0:00:28]} 41. axb4 {[%clk 0:01:18]}  Rxb4 {[%clk 0:00:29]} 42. Ra3 {[%clk 0:01:18]}  Kc7 {[%clk 0:00:29]} 43. Bg2 {[%clk 0:01:17]}  Kb6 {[%clk 0:00:28]} 44. Bf1 {[%clk 0:01:17]}  a5 {[%clk 0:00:28]} 45. Be2 {[%clk 0:01:18]}  Bd7 {[%clk 0:00:27]} 46. Ke1 {[%clk 0:01:11]}  a4 {[%clk 0:00:20]} 47. bxa4 {[%clk 0:01:11]}  Bxa4 {[%clk 0:00:21]} 48. Ra1 {[%clk 0:00:58]}  Bb3 {[%clk 0:00:17]} 49. Rc1 {[%clk 0:00:57]}  Ka5 {[%clk 0:00:15]} 50. Kd2 {[%clk 0:00:57]}  Ra4 {[%clk 0:00:10]} 51. Kc3 {[%clk 0:00:56]}  Ba2 {[%clk 0:00:10]} 52. Rc2 {[%clk 0:00:53]}  Bb1 {[%clk 0:00:09]} 53. Rb2 {[%clk 0:00:51]}  Ba2 {[%clk 0:00:07]} 54. Rb7 {[%clk 0:00:47]}  Nc8 {[%clk 0:00:04]} 55. Rb8 {[%clk 0:00:47]}  Nb6 {[%clk 0:00:04]} 56. Nxf5 {[%clk 0:00:39]}  Bxc4 {[%clk 0:00:05]} 57. Rxb6 {[%clk 0:00:33]}  Bxe2 {[%clk 0:00:05]} 58. Rxd6 {[%clk 0:00:31]}  Ra3+ {[%clk 0:00:05]} 59. Kd2 {[%clk 0:00:31]}  Bd3 {[%clk 0:00:05]} 60. Rd8 {[%clk 0:00:24]}  Bb5 {[%clk 0:00:03]} 61. d6 {[%clk 0:00:23]}  Kb4 {[%clk 0:00:02]} 62. Rb8 {[%clk 0:00:22]}  Rd3+ {[%clk 0:00:02]} 63. Ke1 {[%clk 0:00:22]}  c4 {[%clk 0:00:02]} 64. Rc8 {[%clk 0:00:20]}  c3 {[%clk 0:00:02]} 65. Nd4 {[%clk 0:00:19]}  Ba4 {[%clk 0:00:01]} 66. Kf2 {[%clk 0:00:19]}  c2 {[%clk 0:00:01]} 67. Nxc2+ {[%clk 0:00:19]}  Bxc2 {[%clk 0:00:02]} 68. Rxc2 {[%clk 0:00:19]}  Rxd6 {[%clk 0:00:03]} 69. Rc8 {[%clk 0:00:15]}  Rd2+ {[%clk 0:00:03]} 70. Ke1 {[%clk 0:00:16]}  Rh2 {[%clk 0:00:02]} 71. Re8 {[%clk 0:00:15]}  Kc3 {[%clk 0:00:03]} 72. Rxe4 {[%clk 0:00:14]}  Kd3 {[%clk 0:00:04]} 73. Re5 {[%clk 0:00:14]}  Rxh3 {[%clk 0:00:04]} 74. Kf2 {[%clk 0:00:14]}  Rh2+ {[%clk 0:00:04]} 75. Kg3 {[%clk 0:00:15]}  Re2 {[%clk 0:00:04]} 76. Kh4 {[%clk 0:00:14]}  Rh2+ {[%clk 0:00:03]} 77. Kg5 {[%clk 0:00:14]}  h4 {[%clk 0:00:04]} 78. Kg4 {[%clk 0:00:15]}  h3 {[%clk 0:00:04]} 79. f5 {[%clk 0:00:15]}  Rh1 {[%clk 0:00:04]} 80. Kg3 {[%clk 0:00:15]}  h2 {[%clk 0:00:02]} 81. Kg2 {[%clk 0:00:16]}  Rf1 {[%clk 0:00:01]} 82. Kxh2 {[%clk 0:00:16]}  Rf3 {[%clk 0:00:01]} 83. Kg2 {[%clk 0:00:16]}  Ke2 {[%clk 0:00:02]} 84. e4 {[%clk 0:00:15]}  Ke3 {[%clk 0:00:02]} 85. Re8 {[%clk 0:00:14]}  Rf4 {[%clk 0:00:02]} 86. Re6 {[%clk 0:00:14]}  Rg4+ {[%clk 0:00:02]} 87. Kh3 {[%clk 0:00:14]}  Kf3 {[%clk 0:00:02]} 88. f6 {[%clk 0:00:13]}  Rg6 {[%clk 0:00:02]} 89. Kh4 {[%clk 0:00:13]}  Kf4 {[%clk 0:00:02]} 90. Kh5 {[%clk 0:00:13]}  Rg5+ {[%clk 0:00:02]} 91. Kh6 {[%clk 0:00:13]}  Rg2 {[%clk 0:00:02]} 92. f7 {[%clk 0:00:14]}  Rh2+ {[%clk 0:00:02]} 93. Kg7 {[%clk 0:00:14]}  Rg2+ {[%clk 0:00:03]} 94. Kf6 {[%clk 0:00:14]}  Ke3 {[%clk 0:00:02]} 95. f8=Q {[%clk 0:00:14]}  Rf2+ {[%clk 0:00:03]} 96. Kg7 {[%clk 0:00:14]}  Rg2+ {[%clk 0:00:03]} 97. Kf7 {[%clk 0:00:15]}  Rf2+ {[%clk 0:00:03]} 98. Rf6 {[%clk 0:00:15]}  Rxf6+ {[%clk 0:00:04]} 99. Kxf6 {[%clk 0:00:15]} 1-0


[Site "https://www.chess.com"]

[Event "Titled Tuesday Blitz May 2 Early 2023"]
[White "Csonka, Balazs"]
[Black "Ingebretsen, Jens E"]
[WhiteFideId "742910"]
[BlackFideId "1522965"]
[WhiteElo "2404"]
[BlackElo "2213"]
[Result "1-0"]
[Round "04"]
[TimeControl "180+2"]
[Date "2023.05.02"]
[WhiteClock "0:00:45"]
[BlackClock "0:00:04"]

1. e4 {[%clk 0:03:00]}  c5 {[%clk 0:02:57]} 2. Nc3 {[%clk 0:02:57]}  Nc6 {[%clk 0:02:55]} 3. Bb5 {[%clk 0:02:55]}  g6 {[%clk 0:02:54]} 4. Bxc6 {[%clk 0:02:53]}  dxc6 {[%clk 0:02:53]} 5. d3 {[%clk 0:02:51]}  Bg7 {[%clk 0:02:53]} 6. f4 {[%clk 0:02:52]}  Nf6 {[%clk 0:02:39]} 7. Nf3 {[%clk 0:02:52]}  O-O {[%clk 0:02:39]} 8. O-O {[%clk 0:02:52]}  Nd7 {[%clk 0:02:37]} 9. Be3 {[%clk 0:02:46]}  b6 {[%clk 0:02:36]} 10. Qe1 {[%clk 0:02:29]}  Nf6 {[%clk 0:02:22]} 11. h3 {[%clk 0:02:25]}  Re8 {[%clk 0:02:18]} 12. g4 {[%clk 0:02:13]}  h5 {[%clk 0:01:59]} 13. g5 {[%clk 0:02:13]}  Nh7 {[%clk 0:01:53]} 14. Kh2 {[%clk 0:02:06]}  e5 {[%clk 0:01:52]} 15. fxe5 {[%clk 0:01:55]}  Be6 {[%clk 0:01:18]} 16. Qg3 {[%clk 0:01:46]}  Qd7 {[%clk 0:01:18]} 17. Ne2 {[%clk 0:01:40]}  Rad8 {[%clk 0:01:08]} 18. b3 {[%clk 0:01:34]}  Nf8 {[%clk 0:01:06]} 19. Bc1 {[%clk 0:01:22]}  a5 {[%clk 0:01:01]} 20. Bb2 {[%clk 0:01:20]}  Qc7 {[%clk 0:00:47]} 21. Nh4 {[%clk 0:01:12]}  Nd7 {[%clk 0:00:45]} 22. Rf6 {[%clk 0:01:10]}  Nxf6 {[%clk 0:00:37]} 23. gxf6 {[%clk 0:01:10]}  Bh6 {[%clk 0:00:24]} 24. Nxg6 {[%clk 0:01:06]}  Kh7 {[%clk 0:00:22]} 25. Ne7 {[%clk 0:01:02]}  Rg8 {[%clk 0:00:16]} 26. Nxg8 {[%clk 0:01:01]}  Rxg8 {[%clk 0:00:17]} 27. Qh4 {[%clk 0:01:01]}  Rg5 {[%clk 0:00:14]} 28. Rg1 {[%clk 0:00:58]}  Rxg1 {[%clk 0:00:08]} 29. Nxg1 {[%clk 0:00:59]}  Qd7 {[%clk 0:00:04]} 30. Nf3 {[%clk 0:00:52]}  Kg6 {[%clk 0:00:03]} 31. Qg3+ {[%clk 0:00:45]}  Kh7 {[%clk 0:00:04]} 32. Ng5+ {[%clk 0:00:46]}  Bxg5 {[%clk 0:00:04]} 33. Qxg5 {[%clk 0:00:47]}  Bg4 {[%clk 0:00:04]} 34. Qg7# {[%clk 0:00:45]} 1-0


[Site "https://www.chess.com"]

[Event "Titled Tuesday Blitz May 2 Early 2023"]
[White "Martinez Alcantara, Jose Eduardo"]
[Black "Arencibia Monduy, Antonio"]
[WhiteFideId "3805662"]
[BlackFideId "3507939"]
[WhiteElo "2711"]
[BlackElo "2122"]
[Result "1-0"]
[Round "04"]
[TimeControl "180+2"]
[Date "2023.05.02"]
[WhiteClock "0:01:40"]
[BlackClock "0:00:01"]

1. e4 {[%clk 0:03:00]}  e6 {[%clk 0:02:59]} 2. d4 {[%clk 0:03:00]}  d5 {[%clk 0:02:59]} 3. Nd2 {[%clk 0:03:01]}  dxe4 {[%clk 0:02:59]} 4. Nxe4 {[%clk 0:03:01]}  Nd7 {[%clk 0:03:00]} 5. Nf3 {[%clk 0:03:02]}  Ngf6 {[%clk 0:03:01]} 6. Nxf6+ {[%clk 0:03:02]}  Nxf6 {[%clk 0:03:02]} 7. Bd3 {[%clk 0:03:02]}  Be7 {[%clk 0:03:02]} 8. Qe2 {[%clk 0:03:03]}  O-O {[%clk 0:02:59]} 9. Bd2 {[%clk 0:03:03]}  b6 {[%clk 0:02:57]} 10. O-O-O {[%clk 0:03:02]}  Bb7 {[%clk 0:02:58]} 11. Kb1 {[%clk 0:02:56]}  c5 {[%clk 0:02:50]} 12. dxc5 {[%clk 0:02:56]}  Qc7 {[%clk 0:02:51]} 13. Ne5 {[%clk 0:02:55]}  bxc5 {[%clk 0:02:46]} 14. f4 {[%clk 0:02:55]}  Rab8 {[%clk 0:02:42]} 15. Rhe1 {[%clk 0:02:53]}  Bd5 {[%clk 0:02:38]} 16. c4 {[%clk 0:02:51]}  Qb7 {[%clk 0:02:34]} 17. Bc3 {[%clk 0:02:50]}  Bxg2 {[%clk 0:02:26]} 18. Rg1 {[%clk 0:02:45]}  Be4 {[%clk 0:01:46]} 19. Nd7 {[%clk 0:02:24]}  Bg6 {[%clk 0:00:51]} 20. Nxf8 {[%clk 0:02:22]}  Bxf8 {[%clk 0:00:43]} 21. f5 {[%clk 0:02:08]}  Bh5 {[%clk 0:00:31]} 22. Qe5 {[%clk 0:02:07]}  Ng4 {[%clk 0:00:16]} 23. Qf4 {[%clk 0:02:04]}  e5 {[%clk 0:00:11]} 24. Qg5 {[%clk 0:02:03]}  g6 {[%clk 0:00:02]} 25. Rxg4 {[%clk 0:02:01]}  Qf3 {[%clk 0:00:02]} 26. Rgg1 {[%clk 0:01:55]}  Bg7 {[%clk 0:00:02]} 27. Qg3 {[%clk 0:01:46]}  Qb7 {[%clk 0:00:01]} 28. fxg6 {[%clk 0:01:44]}  hxg6 {[%clk 0:00:01]} 29. Rde1 {[%clk 0:01:40]}  e4 {[%clk 0:00:01]} 30. Bxe4 {[%clk 0:01:40]} 1-0


[Site "https://www.chess.com"]

[Event "Titled Tuesday Blitz May 2 Early 2023"]
[White "Maghsoodloo, Parham"]
[Black "Ezat, Mohamed"]
[WhiteFideId "12539929"]
[BlackFideId "10600906"]
[WhiteElo "2647"]
[BlackElo "2386"]
[Result "1-0"]
[Round "04"]
[TimeControl "180+2"]
[Date "2023.05.02"]
[WhiteClock "0:00:20"]
[BlackClock "0:00:02"]

1. e4 {[%clk 0:02:48]}  c6 {[%clk 0:02:58]} 2. d4 {[%clk 0:02:48]}  d5 {[%clk 0:02:59]} 3. exd5 {[%clk 0:02:45]}  cxd5 {[%clk 0:02:58]} 4. c3 {[%clk 0:02:44]}  Nc6 {[%clk 0:02:58]} 5. Bd3 {[%clk 0:02:43]}  Qc7 {[%clk 0:02:58]} 6. h3 {[%clk 0:02:43]}  g6 {[%clk 0:02:57]} 7. Nf3 {[%clk 0:02:41]}  Nh6 {[%clk 0:02:56]} 8. O-O {[%clk 0:02:42]}  Bf5 {[%clk 0:02:56]} 9. Na3 {[%clk 0:02:38]}  a6 {[%clk 0:02:54]} 10. Nc2 {[%clk 0:02:32]}  Bg7 {[%clk 0:02:50]} 11. Re1 {[%clk 0:02:33]}  Bxd3 {[%clk 0:02:47]} 12. Qxd3 {[%clk 0:02:32]}  O-O {[%clk 0:02:44]} 13. Ne3 {[%clk 0:02:30]}  Rad8 {[%clk 0:02:38]} 14. Ng4 {[%clk 0:02:27]}  Nxg4 {[%clk 0:02:37]} 15. hxg4 {[%clk 0:02:28]}  e5 {[%clk 0:02:35]} 16. dxe5 {[%clk 0:02:27]}  Nxe5 {[%clk 0:02:36]} 17. Nxe5 {[%clk 0:02:25]}  Bxe5 {[%clk 0:02:35]} 18. Bg5 {[%clk 0:02:24]}  Rd7 {[%clk 0:02:31]} 19. g3 {[%clk 0:02:20]}  d4 {[%clk 0:02:24]} 20. Rad1 {[%clk 0:02:19]}  b5 {[%clk 0:02:15]} 21. Re4 {[%clk 0:01:58]}  Bg7 {[%clk 0:01:51]} 22. cxd4 {[%clk 0:01:53]}  Rd5 {[%clk 0:01:48]} 23. Be7 {[%clk 0:01:49]}  Re8 {[%clk 0:01:29]} 24. Bc5 {[%clk 0:01:49]}  Rxe4 {[%clk 0:01:25]} 25. Qxe4 {[%clk 0:01:50]}  Qd7 {[%clk 0:01:25]} 26. b4 {[%clk 0:01:29]}  h5 {[%clk 0:01:20]} 27. gxh5 {[%clk 0:01:27]}  Rxh5 {[%clk 0:01:19]} 28. d5 {[%clk 0:01:27]}  Re5 {[%clk 0:01:18]} 29. Qf3 {[%clk 0:01:25]}  Rf5 {[%clk 0:01:03]} 30. Qg2 {[%clk 0:01:25]}  Be5 {[%clk 0:00:51]} 31. d6 {[%clk 0:01:23]}  Rf6 {[%clk 0:00:42]} 32. Qe4 {[%clk 0:01:07]}  Re6 {[%clk 0:00:41]} 33. Qd5 {[%clk 0:01:04]}  Bf6 {[%clk 0:00:36]} 34. Kg2 {[%clk 0:01:02]}  Re5 {[%clk 0:00:36]} 35. Qf3 {[%clk 0:01:01]}  Rf5 {[%clk 0:00:36]} 36. Qa8+ {[%clk 0:01:00]}  Kg7 {[%clk 0:00:35]} 37. Rh1 {[%clk 0:01:00]}  Bd8 {[%clk 0:00:33]} 38. Bd4+ {[%clk 0:00:57]}  f6 {[%clk 0:00:32]} 39. Bc5 {[%clk 0:00:56]}  Qe6 {[%clk 0:00:21]} 40. Rh4 {[%clk 0:00:56]}  g5 {[%clk 0:00:15]} 41. Qb7+ {[%clk 0:00:52]}  Kg8 {[%clk 0:00:09]} 42. Qh7+ {[%clk 0:00:47]}  Kf8 {[%clk 0:00:10]} 43. d7+ {[%clk 0:00:46]}  Rxc5 {[%clk 0:00:09]} 44. Qh8+ {[%clk 0:00:46]}  Kf7 {[%clk 0:00:08]} 45. Rh7+ {[%clk 0:00:42]}  Kg6 {[%clk 0:00:08]} 46. bxc5 {[%clk 0:00:40]}  Qe4+ {[%clk 0:00:07]} 47. Kh2 {[%clk 0:00:40]}  Qf3 {[%clk 0:00:07]} 48. Rg7+ {[%clk 0:00:24]}  Kf5 {[%clk 0:00:06]} 49. Qh7+ {[%clk 0:00:24]}  Ke5 {[%clk 0:00:06]} 50. Qc2 {[%clk 0:00:24]}  Qh5+ {[%clk 0:00:03]} 51. Kg2 {[%clk 0:00:24]}  g4 {[%clk 0:00:04]} 52. Qh7 {[%clk 0:00:20]}  Qf5 {[%clk 0:00:02]} 53. Qxf5+ {[%clk 0:00:20]}  Kxf5 {[%clk 0:00:02]} 54. Rg8 {[%clk 0:00:20]} 1-0


[Site "https://www.chess.com"]

[Event "Titled Tuesday Blitz May 2 Early 2023"]
[White "Tasev, Dejan"]
[Black "Ibarra Jerez, Jose Carlos"]
[WhiteFideId "936618"]
[BlackFideId "2226332"]
[WhiteElo "2244"]
[BlackElo "2638"]
[Result "1/2-1/2"]
[Round "04"]
[TimeControl "180+2"]
[Date "2023.05.02"]
[WhiteClock "0:00:10"]
[BlackClock "0:00:07"]

1. e4 {[%clk 0:03:00]}  c5 {[%clk 0:02:59]} 2. Nf3 {[%clk 0:02:59]}  Nc6 {[%clk 0:02:59]} 3. Nc3 {[%clk 0:02:58]}  e6 {[%clk 0:02:56]} 4. g3 {[%clk 0:02:57]}  d5 {[%clk 0:02:53]} 5. exd5 {[%clk 0:02:57]}  exd5 {[%clk 0:02:54]} 6. Bg2 {[%clk 0:02:57]}  d4 {[%clk 0:02:54]} 7. Ne2 {[%clk 0:02:57]}  d3 {[%clk 0:02:53]} 8. cxd3 {[%clk 0:02:57]}  Nb4 {[%clk 0:02:47]} 9. O-O {[%clk 0:02:53]}  Nxd3 {[%clk 0:02:46]} 10. Ne1 {[%clk 0:02:41]}  Nf6 {[%clk 0:02:42]} 11. Nxd3 {[%clk 0:02:40]}  Qxd3 {[%clk 0:02:41]} 12. Nf4 {[%clk 0:02:40]}  Qd6 {[%clk 0:02:36]} 13. Re1+ {[%clk 0:02:34]}  Be7 {[%clk 0:02:36]} 14. b3 {[%clk 0:02:28]}  O-O {[%clk 0:02:33]} 15. Bb2 {[%clk 0:02:28]}  Bg4 {[%clk 0:02:22]} 16. Qc2 {[%clk 0:02:23]}  Qd7 {[%clk 0:02:21]} 17. h3 {[%clk 0:02:06]}  Bf5 {[%clk 0:02:11]} 18. Qc3 {[%clk 0:02:02]}  b5 {[%clk 0:01:36]} 19. g4 {[%clk 0:01:56]}  b4 {[%clk 0:01:28]} 20. Qe5 {[%clk 0:01:50]}  Bd6 {[%clk 0:01:02]} 21. Qxf5 {[%clk 0:01:39]}  Qxf5 {[%clk 0:01:02]} 22. gxf5 {[%clk 0:01:39]}  Bxf4 {[%clk 0:01:03]} 23. Bxa8 {[%clk 0:01:39]}  Rxa8 {[%clk 0:01:04]} 24. Bxf6 {[%clk 0:01:35]}  gxf6 {[%clk 0:01:04]} 25. Rec1 {[%clk 0:01:33]}  Be5 {[%clk 0:00:59]} 26. Rab1 {[%clk 0:01:30]}  Bd4 {[%clk 0:01:00]} 27. Re1 {[%clk 0:01:30]}  Rd8 {[%clk 0:00:59]} 28. Re4 {[%clk 0:01:18]}  Rd5 {[%clk 0:00:57]} 29. Rf4 {[%clk 0:01:16]}  Kf8 {[%clk 0:00:49]} 30. Kf1 {[%clk 0:01:14]}  Be5 {[%clk 0:00:49]} 31. Rc4 {[%clk 0:01:03]}  Rxd2 {[%clk 0:00:49]} 32. Re1 {[%clk 0:01:00]}  Bd4 {[%clk 0:00:49]} 33. Re2 {[%clk 0:00:59]}  Rd1+ {[%clk 0:00:48]} 34. Kg2 {[%clk 0:00:59]}  Kg7 {[%clk 0:00:39]} 35. Rcc2 {[%clk 0:00:54]}  Kf8 {[%clk 0:00:33]} 36. Kf3 {[%clk 0:00:50]}  Rg1 {[%clk 0:00:31]} 37. Re4 {[%clk 0:00:47]}  Rg5 {[%clk 0:00:30]} 38. Rf4 {[%clk 0:00:43]}  Ke7 {[%clk 0:00:24]} 39. Ke4 {[%clk 0:00:39]}  Kd6 {[%clk 0:00:23]} 40. Rg4 {[%clk 0:00:37]}  Rh5 {[%clk 0:00:21]} 41. h4 {[%clk 0:00:37]}  a5 {[%clk 0:00:19]} 42. f3 {[%clk 0:00:37]}  Bc3 {[%clk 0:00:19]} 43. Rc1 {[%clk 0:00:36]}  Bd4 {[%clk 0:00:15]} 44. Rh1 {[%clk 0:00:34]}  Ke7 {[%clk 0:00:13]} 45. Rg8 {[%clk 0:00:29]}  Bf2 {[%clk 0:00:06]} 46. Kf4 {[%clk 0:00:24]}  Kd6 {[%clk 0:00:03]} 47. Ra8 {[%clk 0:00:20]}  c4 {[%clk 0:00:01]} 48. bxc4 {[%clk 0:00:20]}  Bb6 {[%clk 0:00:01]} 49. Ra6 {[%clk 0:00:19]}  Kc6 {[%clk 0:00:02]} 50. Kg4 {[%clk 0:00:19]}  Rh6 {[%clk 0:00:01]} 51. h5 {[%clk 0:00:19]}  Kb7 {[%clk 0:00:02]} 52. Rxb6+ {[%clk 0:00:19]}  Kxb6 {[%clk 0:00:03]} 53. Rc1 {[%clk 0:00:18]}  Kc5 {[%clk 0:00:03]} 54. f4 {[%clk 0:00:19]}  a4 {[%clk 0:00:04]} 55. Rc2 {[%clk 0:00:19]}  Kd4 {[%clk 0:00:04]} 56. c5 {[%clk 0:00:19]}  b3 {[%clk 0:00:04]} 57. axb3 {[%clk 0:00:20]}  axb3 {[%clk 0:00:05]} 58. Rb2 {[%clk 0:00:20]}  Kxc5 {[%clk 0:00:04]} 59. Rxb3 {[%clk 0:00:20]}  Kd6 {[%clk 0:00:04]} 60. Rb7 {[%clk 0:00:20]}  Kd5 {[%clk 0:00:05]} 61. Rxf7 {[%clk 0:00:20]}  Kd6 {[%clk 0:00:05]} 62. Rf8 {[%clk 0:00:20]}  Ke7 {[%clk 0:00:05]} 63. Rc8 {[%clk 0:00:20]}  Kd6 {[%clk 0:00:05]} 64. Re8 {[%clk 0:00:20]}  Kd7 {[%clk 0:00:05]} 65. Re6 {[%clk 0:00:20]}  Kd8 {[%clk 0:00:06]} 66. Re1 {[%clk 0:00:20]}  Kd7 {[%clk 0:00:06]} 67. Rh1 {[%clk 0:00:21]}  Kd6 {[%clk 0:00:06]} 68. Kf3 {[%clk 0:00:21]}  Kd5 {[%clk 0:00:06]} 69. Ke3 {[%clk 0:00:21]}  Kc4 {[%clk 0:00:07]} 70. Ke4 {[%clk 0:00:21]}  Kc5 {[%clk 0:00:08]} 71. Rd1 {[%clk 0:00:20]}  Rxh5 {[%clk 0:00:07]} 72. Rc1+ {[%clk 0:00:20]}  Kd6 {[%clk 0:00:08]} 73. Ra1 {[%clk 0:00:20]}  Rh2 {[%clk 0:00:07]} 74. Ra6+ {[%clk 0:00:19]}  Ke7 {[%clk 0:00:08]} 75. Ra7+ {[%clk 0:00:19]}  Kd6 {[%clk 0:00:06]} 76. Ra6+ {[%clk 0:00:19]}  Ke7 {[%clk 0:00:07]} 77. Ra7+ {[%clk 0:00:19]}  Kf8 {[%clk 0:00:07]} 78. Kd5 {[%clk 0:00:19]}  Re2 {[%clk 0:00:04]} 79. Rxh7 {[%clk 0:00:18]}  Re1 {[%clk 0:00:05]} 80. Rd7 {[%clk 0:00:17]}  Re2 {[%clk 0:00:04]} 81. Rd6 {[%clk 0:00:17]}  Kf7 {[%clk 0:00:04]} 82. Rd7+ {[%clk 0:00:18]}  Kf8 {[%clk 0:00:04]} 83. Rb7 {[%clk 0:00:18]}  Re1 {[%clk 0:00:04]} 84. Kd6 {[%clk 0:00:18]}  Re4 {[%clk 0:00:04]} 85. Rb8+ {[%clk 0:00:16]}  Kg7 {[%clk 0:00:04]} 86. Rb7+ {[%clk 0:00:16]}  Kh6 {[%clk 0:00:04]} 87. Rf7 {[%clk 0:00:15]}  Rxf4 {[%clk 0:00:04]} 88. Ke6 {[%clk 0:00:15]}  Ra4 {[%clk 0:00:03]} 89. Rxf6+ {[%clk 0:00:15]}  Kg7 {[%clk 0:00:03]} 90. Rg6+ {[%clk 0:00:14]}  Kf8 {[%clk 0:00:03]} 91. Kf6 {[%clk 0:00:14]}  Ra6+ {[%clk 0:00:03]} 92. Kg5 {[%clk 0:00:14]}  Ra1 {[%clk 0:00:03]} 93. Rb6 {[%clk 0:00:13]}  Rf1 {[%clk 0:00:02]} 94. Kg6 {[%clk 0:00:13]}  Rf2 {[%clk 0:00:02]} 95. Rb8+ {[%clk 0:00:12]}  Ke7 {[%clk 0:00:02]} 96. Rb7+ {[%clk 0:00:12]}  Kf8 {[%clk 0:00:03]} 97. Kf6 {[%clk 0:00:11]}  Kg8 {[%clk 0:00:04]} 98. Rb8+ {[%clk 0:00:11]}  Kh7 {[%clk 0:00:04]} 99. Ke6 {[%clk 0:00:11]}  Kg7 {[%clk 0:00:04]} 100. Rb7+ {[%clk 0:00:09]}  Kf8 {[%clk 0:00:05]} 101. Rb8+ {[%clk 0:00:09]}  Kg7 {[%clk 0:00:05]} 102. Rb3 {[%clk 0:00:09]}  Kf8 {[%clk 0:00:05]} 103. Rh3 {[%clk 0:00:08]}  Rf1 {[%clk 0:00:04]} 104. Kf6 {[%clk 0:00:08]}  Kg8 {[%clk 0:00:04]} 105. Rc3 {[%clk 0:00:08]}  Rf2 {[%clk 0:00:04]} 106. Rc7 {[%clk 0:00:08]}  Rf1 {[%clk 0:00:04]} 107. Rc8+ {[%clk 0:00:07]}  Kh7 {[%clk 0:00:04]} 108. Rc4 {[%clk 0:00:07]}  Kg8 {[%clk 0:00:04]} 109. Rc5 {[%clk 0:00:07]}  Rf2 {[%clk 0:00:03]} 110. Kg6 {[%clk 0:00:07]}  Rg2+ {[%clk 0:00:04]} 111. Kf6 {[%clk 0:00:08]}  Rf2 {[%clk 0:00:04]} 112. Rc8+ {[%clk 0:00:08]}  Kh7 {[%clk 0:00:05]} 113. Rc4 {[%clk 0:00:08]}  Kg8 {[%clk 0:00:05]} 114. Rh4 {[%clk 0:00:08]}  Rf1 {[%clk 0:00:05]} 115. Kg6 {[%clk 0:00:08]}  Rg1+ {[%clk 0:00:05]} 116. Kf6 {[%clk 0:00:08]}  Rf1 {[%clk 0:00:06]} 117. Rb4 {[%clk 0:00:09]}  Rf2 {[%clk 0:00:06]} 118. Rb7 {[%clk 0:00:09]}  Rf1 {[%clk 0:00:06]} 119. Rb5 {[%clk 0:00:09]}  Rf2 {[%clk 0:00:06]} 120. Ke6 {[%clk 0:00:09]}  Re2+ {[%clk 0:00:06]} 121. Kf6 {[%clk 0:00:10]}  Rf2 {[%clk 0:00:07]} 122. Rb4 {[%clk 0:00:10]}  Rf1 {[%clk 0:00:07]} 123. Rd4 {[%clk 0:00:10]}  Rf2 {[%clk 0:00:07]} 124. Rd7 {[%clk 0:00:10]}  Rf1 {[%clk 0:00:07]} 125. Rd4 {[%clk 0:00:10]}  Rf2 {[%clk 0:00:07]} 126. Rh4 {[%clk 0:00:10]}  Rf1 {[%clk 0:00:07]} 1/2-1/2


[Site "https://www.chess.com"]